Cogmind - Beta 14 *** ADVENTURER MODE // 2024.11.05 @ 14:50:00 Player: HarderSoftware Result: Destroyed by G-47 Trooper with Particle Gun Performance ------------- Evolutions (1) 500 Regions Visited (2) 400 Robots Destroyed (19) 95 Value Destroyed (256) 256 Prototype IDs (0) 0 Alien Tech Used (0) 0 Bonus (0) 0 TOTAL SCORE: 1251 Bonus ------- None Cogmind --------- Core Integrity 0/400 Matter 269/300 Energy 100/100 System Corruption 0% Temperature Cool (9) Movement Core (1350) Ox26 Location -9/Materials Parts ------- > --- POWER (1) -------- (None) > --- PROPULSION (3) --- (None) > --- UTILITY (3) ------ Huge Storage Unit > --- WEAPON (2) ------- (None) > --- INVENTORY (25) --- Light Ion Engine Heat Sink Peak State ------------ > --- POWER ------------ Light Ion Engine > --- PROPULSION ------- Wheel Wheel > --- UTILITY ---------- Huge Storage Unit Structural Scanner Core Shielding > --- WEAPON ----------- Assault Rifle Light Assault Rifle > --- INVENTORY -------- Light Ion Engine Wheel Wheel Heat Sink Grenade Launcher Grenade Launcher [Rating: 8] Favorites ----------- Power Light Ion Engine Engine Light Ion Engine Propulsion Wheel Wheel Wheel Utility Huge Storage Unit Device Structural Scanner Storage Huge Storage Unit Protection Core Shielding Weapon Assault Rifle Energy Gun Medium Laser Ballistic Gun Assault Rifle Launcher Grenade Launcher Build | -11 -10 -9 ------- Run | Yrd Mat Mat Slots Evolved 2 | . . 2 Power . | . . . Propulsion 1 | . . 1 Utility 1 | . . 1 Weapon . | . . . Parts Attached 17 | 6 6 5 Power 1 | 1 . . Engine 1 | 1 . . Core . | . . . Reactor . | . . . Propulsion 4 | 2 . 2 Treads . | . . . Leg . | . . . Wheel 4 | 2 . 2 Hover . | . . . Flight . | . . . Utility 7 | 1 5 1 Device 3 | . 2 1 Storage 3 | 1 2 . Processor . | . . . Hackware . | . . . Protection 1 | . 1 . Artifact . | . . . Weapon 5 | 2 1 2 Energy Gun 1 | 1 . . Energy Cannon . | . . . Ballistic Gun 2 | 1 1 . Ballistic Cannon . | . . . Launcher 2 | . . 2 Special Weapon . | . . . Impact Weapon . | . . . Slashing Weapon . | . . . Piercing Weapon . | . . . Special Melee Weapon . | . . . Unidentified Prototypes . | . . . Parts Lost 11 | . . 11 Power 1 | . . 1 Propulsion 4 | . . 4 Utility 2 | . . 2 Weapon 4 | . . 4 Highest Loss Streak 11 | . . 11 To Critical Strikes . | . . . Average Slot Usage (%) 85 | . 95 69 Engine 11 | . 14 7 Wheel 24 | . 28 18 Device 2 | . 2 3 Storage 13 | . 14 11 Protection 8 | . 7 9 Energy Gun 3 | . 6 . Ballistic Gun 20 | . 22 17 Peak Build Rating 8 | 6 7 8 Average Rating 6 | 3 6 6 On Entrance 4 | . 6 7 Naked Turns . | . . . Heaviest Build 89 | 9 89 88 Greatest Support 20 | 20 20 20 Greatest Overweight (x) 27 | . 4 27 Average Overweight (x) 2 | . 2 4 Largest Inventory Capacity 25 | 5 25 25 Average Capacity 17 | 5 16 25 Most Carried 7 | 5 7 7 Average Carried 5 | 3 5 5 Final Capacity 25 | 5 25 25 Final Carried 7 | 3 7 2 Class Distribution -------------------- 100% | Mutant Dominant Class ---------------- Mutant | -10/Materials Mutant | -9/Materials Resources | -11 -10 -9 ----------- Run | Yrd Mat Mat Matter Collected 509 | 360 88 61 Remotely . | . . . Salvage Created 347 | 68 115 164 Parts 39 | 6 19 14 Haulers Intercepted . | . . . Recyclers Shooed . | . . . Parts Field Recycled . | . . . Retrieved Matter . | . . . Parts Self-Destructed . | . . . Prevented . | . . . Kills | -11 -10 -9 ------- Run | Yrd Mat Mat Combat Hostiles Destroyed 15 | 1 6 8 Guns 14 | 1 6 7 AOE 1 | . . 1 Classes Destroyed 6 | 2 3 1 Worker 2 | 1 1 . Builder 1 | . 1 . Watcher 1 | . 1 . Swarmer 12 | . 6 6 Grunt 2 | 1 . 1 Sentry 1 | . . 1 Best Kill Streak 8 | 1 8 4 Combat Bots Only 6 | 1 6 4 Max Kills in Single Turn 1 | 1 1 1 Gunslinging . | . . . Exploded 1 | . . 1 Melee . | . . . Uniques/NPCs Destroyed . | . . . Combat | -11 -10 -9 -------- Run | Yrd Mat Mat Hostile Shots Fired 160 | 4 27 129 Missed 43 | . 9 34 Damage Taken 1158 | 34 98 1026 Core 464 | 9 53 402 Absorbed by Shields . | . . . Redirected to Shielding 51 | . . 51 Ignored by Resistances 352 | 10 36 306 Core Remaining (%) 85 | 96 75 . Volleys Fired 40 | 4 16 20 Largest 2 | 2 2 2 Hottest 70 | 70 70 50 Shots Fired 67 | 8 27 32 Gun 62 | 8 27 27 Cannon . | . . . Launcher 5 | . . 5 Special . | . . . Kinetic 47 | 4 16 27 Thermal 15 | 4 11 . Explosive 5 | . . 5 Electromagnetic . | . . . Robot Hit Streak 13 | 6 13 10 Robot Miss Streak 3 | . 3 1 Penetration Max . | . . . Secondary Targets 2 | . . 2 Max Gunslinging Chain 1 | . . 1 Shots Hit Robots 50 | 6 17 27 Core Hits 25 | 3 9 13 Critical Kills . | . . . Critical Parts Destroyed . | . . . Critical Strikes . | . . . Melee Attacks . | . . . Impact . | . . . Slashing . | . . . Piercing . | . . . Sneak Attacks . | . . . Combat Hostiles . | . . . Follow-up Attacks . | . . . Damage Inflicted 720 | 74 214 432 Guns 502 | 74 214 214 Cannons . | . . . Explosions 218 | . . 218 Melee . | . . . Ramming . | . . . Kinetic 338 | 36 88 214 Thermal 164 | 38 126 . Explosive 218 | . . 218 Electromagnetic . | . . . Impact . | . . . Slashing . | . . . Piercing . | . . . Highest Corruption . | . . . Average Corruption . | . . . Corruption Purged . | . . . Corruption Blocked . | . . . Overload Shots . | . . . Overflow Damage 4 | . . 4 Projectiles . | . . . Explosions 4 | . . 4 Melee . | . . . Knockbacks . | . . . Impact . | . . . Kinetic . | . . . Secondary . | . . . Self-Inflicted Damage 81 | . . 81 Shots 3 | . . 3 Rammed . | . . . Targets Rammed . | . . . Kicked . | . . . Crushed . | . . . Highest Temperature 36 | 8 36 16 Average Temperature 13 | 4 16 6 Received Heat Transfer 516 | 24 . 492 Siege Activations . | . . . Robots Corrupted . | . . . Combat Hostiles . | . . . Parts Fried . | . . . Impact Corruptions . | . . . Robots Melted . | . . . Combat Hostiles . | . . . Parts Melted . | . . . Heat Transferred 481 | 111 370 . Parts Sabotaged . | . . . Parts Stolen . | . . . Parts Stripped . | . . . Power Chain Reactions . | . . . Alert | -11 -10 -9 ------- Run | Yrd Mat Mat Peak Influence 233 | 25 217 233 Initial 78 | . 13 78 Average 147 | 5 176 175 Maximum Alert Level 1 | . 1 1 Low Security (%) 54 | 100 25 78 Level 1 45 | . 74 21 Level 2 . | . . . Level 3 . | . . . Level 4 . | . . . Level 5 . | . . . High Security . | . . . Max Security . | . . . Squads Dispatched . | . . . Investigation . | . . . Extermination . | . . . Reinforcement . | . . . Assault . | . . . Garrison . | . . . Intercept . | . . . Searches Triggered . | . . . Construction Impeded . | . . . Haulers Reinforced . | . . . Active Scanning Responses . | . . . Cargo Convoy Interrupts . | . . . Stealth | -11 -10 -9 --------- Run | Yrd Mat Mat Distress Signals 1 | . 1 . Communications Jammed . | . . . Distress Signals . | . . . Times Spotted 19 | 1 7 11 Peak Tracking Total 8 | 1 4 8 Tactical Retreats 1 | . 1 . Traps | -11 -10 -9 ------- Run | Yrd Mat Mat Traps Triggered . | . . . Indirectly . | . . . Trap Hack Attempts . | . . . Triggered . | . . . Disarmed . | . . . Reprogrammed . | . . . Reused . | . . . Traps Extracted . | . . . Installed . | . . . Triggered . | . . . Machines | -11 -10 -9 ---------- Run | Yrd Mat Mat Machines Disabled . | . . . Max in Single Turn . | . . . Machines Repaired . | . . . Machines Dismantled . | . . . Machines Sabotaged . | . . . Overloaded Fab Kills . | . . . Hacking | -11 -10 -9 --------- Run | Yrd Mat Mat Machines Accessed 1 | . 1 . Terminals 1 | . 1 . Fabricators . | . . . Repair Stations . | . . . Recycling Units . | . . . Scanalyzers . | . . . Garrison Access . | . . . Total Hacks 5 | . 5 . Successful 2 | . 2 . Failed 3 | . 3 . Catastrophic . | . . . Database Lockouts . | . . . Manual . | . . . Terminals 5 | . 5 . Fabricators . | . . . Repair Stations . | . . . Recycling Units . | . . . Scanalyzers . | . . . Garrison Access . | . . . Terminal Hacks 2 | . 2 . Record 1 | . 1 . Surveillance Status 1 | . 1 . Fabricator Hacks . | . . . Repair Station Hacks . | . . . Recycling Unit Hacks . | . . . Scanalyzer . | . . . Garrison Access Hacks . | . . . Unauthorized Hacks . | . . . Terminals . | . . . Fabricators . | . . . Repair Stations . | . . . Recycling Units . | . . . Scanalyzers . | . . . Garrison Access . | . . . Data Cores Recovered . | . . . Used . | . . . Hacking Detections 1 | . 1 . Full Trace Events . | . . . Feedback Events . | . . . Feedback Blocked . | . . . Robot Schematics Acquired . | . . . Robots Built . | . . . Authchips . | . . . Time . | . . . Total Robot Build Rating . | . . . Part Schematics Acquired . | . . . Parts Built . | . . . Authchips . | . . . Time . | . . . Total Part Build Rating . | . . . Parts Repaired . | . . . Time . | . . . Parts Recycled . | . . . Recycled Matter . | . . . Retrieved Matter . | . . . Retrieved Components . | . . . Parts Scanalyzed . | . . . Part Schematics Acquired . | . . . Parts Damaged . | . . . Bothacking | -11 -10 -9 ------------ Run | Yrd Mat Mat Used RIF Installer . | . . . Robots Hacked . | . . . Non-combat . | . . . Combat . | . . . Robot Hacks Applied . | . . . Relay Couplers Released . | . . . Fabnet Peak Effective % . | . . . Robots Rewired . | . . . Allies Hacked . | . . . Hacks Repelled . | . . . Allies | -11 -10 -9 -------- Run | Yrd Mat Mat Total Allies . | . . . Largest Group . | . . . Highest-Rated Group . | . . . Highest-Rated Ally . | . . . Total Orders . | . . . Ally Attacks . | . . . Total Damage . | . . . Kills . | . . . Allies Corrupted . | . . . Allies Melted . | . . . Intel | -11 -10 -9 ------- Run | Yrd Mat Mat Robot Analysis Total . | . . . Derelict Logs Recovered . | . . . Drone Launches . | . . . Drone Recoveries . | . . . Exploration | -11 -10 -9 ------------- Run | Yrd Mat Mat Turns Passed 673 | 113 353 207 Spaces Moved 471 | 116 256 99 Core 50 | 49 . 1 Treads . | . . . Legs . | . . . Wheels 421 | 67 256 98 Hover . | . . . Flight . | . . . Fastest Speed 50 | 50 80 140 Average Speed 110 | 67 113 154 Slowest Speed 1400 | 80 140 1400 Overloaded Moves . | . . . Propulsion Burnouts . | . . . Robots Hopped . | . . . Cave-ins Triggered . | . . . Exploration Rate (%) 14 | 6 28 10 Regions Visited 2 Branch Regions . Pre-discovered Areas . | . . . Known Exits Taken . | . . . Unknown Exits Taken 2 | 1 1 . Scrap Searched . | . . . Spaces Dug . | . . . Terrain Destroyed 14 | . . 14 Melee . | . . . Projectile . | . . . AOE 14 | . . 14 Terrain Rammed . | . . . Walls Destroyed . | . . . Machines Disabled . | . . . Actions | -11 -10 -9 --------- Run | Yrd Mat Mat Total 563 | 145 294 124 Wait 2 | 1 1 . Move 469 | 115 255 99 Hop . | . . . Pick Up 24 | 14 10 . Fast Attach . | . . . Attach 16 | 6 5 5 Detach 1 | . 1 . Swap 1 | . 1 . Drop 10 | 5 5 . Fire 40 | 4 16 20 Melee . | . . . Ram . | . . . Kick . | . . . Crush . | . . . Escape Stasis . | . . . Rewire . | . . . Trap . | . . . Miscellaneous . | . . . Route ------- -11/Scrapyard -10/Materials -9/Materials History --------- Turn | Location | Event 2 | -11/Scrapyard | Met Revision 17 85 | -11/Scrapyard | Discovered new exit (range 8) 114 | -11/Scrapyard | Entered Materials 310 | -10/Materials | Build established: Mutant 411 | -10/Materials | Discovered new exit (range 9) 467 | -10/Materials | Entered another Materials area 467 | -9/Materials | Evolved 2 slots: Propulsion x1, Utility x1 651 | -9/Materials | Core integrity fell below 50% 666 | -9/Materials | Core integrity fell below 20% 674 | -9/Materials | Destroyed by G-47 Trooper with Particle Gun Last Messages --------------- Wheel destroyed. Destroyed Wheel. Lgt. Assault Rifle destroyed. Acquired 45 matter. Grenade Launcher destroyed. U-05 Engineer builds a Wall. G-34 Mercenary destroyed. U-05 Engineer builds a Wall. Critical hit (Burn: +37). U-05 Engineer builds a Wall. Wheel destroyed. Destroyed Wheel. Core Shielding destroyed. U-05 Engineer lays Concrete. Grenade Launcher destroyed. The unstable cave ceiling collapses. U-05 Engineer lays Concrete. Critical hit (Burn: +37). U-05 Engineer lays Concrete. [Achievement: First Step to Greatness] Map ----- +----------------------------------------------------+ | ??????????????????????????????????? | | ??????????????????????????????????? | | ??????????????????????????????????? | | ??????????????????????????????????? | | ??????????????????????????????????? | | ??????????????????????????????????? | | ??????????????? ##???????????? | | ??????????????? ##???????????? | | ?????????"????? ##???????????? | | ????????""???? ?????????????? | | ????????"""???## ##?????????????? | | ????????? ???## ##?????????????? | | ???????? ??## ##????? ####???? | | ?#########+##### ####### ####???? | | # # ##### % ####### ???? | | # # %[ ????? | | # ]] # ????? | | ? =] + ????? | | ?? # ##?????? | | ???[ ### ##?????? | | ???? ?## ###### ##?????? | | ????? ?## u! ##????????? | | ?????? ### u !##????????? | | ???##### # % !##????????? | | ??####### Y !##????????? | | ??## @ % !##????????? | | ??## g%= !###????????? | | ??## = ###????????? | | ??## #####?????????? | | ??## ##????????????? | | ??## ##????????????? | | ??## ##????????????? | | ??## ##????????????? | | ??## ##????????????? | | ??####+#########[= ##????????????? | | ??## ######%*= ###### #####??? | | ???# """ #??# *=*[ ? | | ???# """ #??# ? | | ???# """ #??# ? | | ???# #??# ###+######+#####?? | | ???# #??# #????????????????? | | ???########??# #????????????????? | | ?????????????# #????????????????? | | ?????????????#####????????????????? | | ??????????????????????????????????? | | ??????????????????????????????????? | | ??????????????????????????????????? | | ??????????????????????????????????? | | ??????????????????????????????????? | | ??????????????????????????????????? | +----------------------------------------------------+ Best States ------------- Heat Dissipation 28 Energy Generation 10 Energy Capacity 125 Matter Stores 400 Matter Capacity 400 Sight Range 16 Terrain Scan Density 10 Resistance: KI 20 Resistance: TH 20 Resistance: EX 20 Resistance: EM 20 Resistance: I 20 Resistance: S 20 Resistance: P 20 Core Shielding 20 Evasion (%) 50 Offensive Hacking 10 Item Schematics ----------------- None Robot Schematics ------------------ None Fabricated ------------ Nothing Alien Tech Used ----------------- None Achievements -------------- Crack Shot First Step to Greatness Let's See Who's Tougher Challenges ------------ None Game ------ Seed DisassembledRingExpander Manual? 0 Play Time 00:19:37 Cumulative 0.2 hours Start 2024.11.05 @ 14:31:25 End 2024.11.05 @ 14:50:00 Sessions 1 Manual Loads 0 Difficulty Adventurer Special Mode None Game No. 1 Rogue 0 Adventurer 1 Explorer 0 Win Type - Total 0 Types 0/0/0/0/0/0/0/0/0 Lore% 0 Gallery% 0 Achievement% 1 Wizard Run 0 Options --------- Layout 1 ASCII 0 Keyboard 0 Movement Arrows Keybinds 0 Fullscreen 1 Font 32/SmallcapsGlow Map View 50x40 Zoom Use 56% Tactical HUD 0 Map Filters NONE Filters NONE Steam 1 RUN: 39383105-b99c-4441-81ab-126919e51cb4